Workbook

Sheet стр.1_3
CO1: Приложение 2
CO2: к приказу Федеральной службы по тарифам
CO3: от 24 октября 2014 г. № 1831-э
A5: Форма раскрытия информации о структуре и объемах затрат
A6: на оказание услуг по передаче электрической энергии сетевыми
A7: организациями, регулирование деятельности которых осуществляется
A8: методом долгосрочной индексации необходимой валовой выручки
C10: Наименование организации: | AG10: ООО "Нижегородская электросетевая компания"
C11: ИНН: | J11: 5256133344
C12: КПП: | J12: 525601001
C13: Долгосрочный период регулирования: | AQ13: 2019 | AY13: - | BA13: 2023 | BI13: гг.
A15: № п/п | J15: Показатель | BI15: Ед. изм. | BT15: 2022 | CN15: Примечание ***
BT16: план * | CD16: факт **
A17: I | K17: Структура затрат | BI17: х | BT17: х | CD17: х | CN17: х
A18: 1 | K18: Необходимая валовая выручка на содержание | BI18: тыс. руб. | BT18: 91,290.46 | CD18: =CD19+CD41 -> 214,109.74 | CN18: РСТ НО в плане базового года ДПР (2019 г.) учтены затраты на ТО и ППР сетей не в полном объеме от заявленого | DI18: =CD18-BT18 -> 122,819.28 | DK18: =DI18/BT18*100 -> 134.5
A19: 1.1 | K19: Подконтрольные расходы, всего | BI19: тыс. руб. | BT19: 92,010.46 | CD19: =CD20+CD25+CD27 -> 123,963.35 | CN19: РСТ НО в плане базового года ДПР (2019 г.) учтены затраты на ТО и ППР сетей не в полном объеме от заявленого | DI19: =CD19-BT19 -> 31,952.89 | DK19: =DI19/BT19*100 -> 34.7
A20: 1.1.1 | K20: Материальные расходы, всего | BI20: тыс. руб. | BT20: =BT21+BT22+BT23 -> 86,614.62 | CD20: =CD21+CD22+CD23 -> 32,066.20 | CN20: в плане базового года ДПР (2019 г.) затраты на ФОТ, материалы были учтены в статье "Работы и услуги производственного характера". В 2020 г. произошел перевод персонала ЭСЦ ООО "Заводские сети" в штат ООО "НЭСК" | DI20: -54,548.42 | DK20: -63.0
A21: 1.1.1.1 | K21: в том числе на сырье, материалы, запасные части, инструмент, топливо | BI21: тыс. руб. | BT21: 0.00 | CD21: 24,361.20 | CN21: в плане базового года ДПР (2019 г.) затраты на ФОТ, материалы были учтены в статье "Работы и услуги производственнного характера". В 2020 г. произошел перевод персонала ЭСЦ ООО "Заводские сети" в штат ООО "НЭСК" | DI21: 24,361.20
A22: 1.1.1.2 | K22: на ремонт | BI22: тыс. руб. | BT22: =21840.61*1.01854 -> 22,245.53 | CD22: 4,012.48 | CN22: частичный переход с выполнения кап. ремонтов подрядным способом на кап. ремонты хоз. способом (силами ЭСЦ ООО "НЭСК") | DI22: -18,233.05 | DK22: -82.0
A23: 1.1.1.3 | K23: в том числе на работы и услуги производственного характера (в том числе услуги сторонних организаций по содержанию сетей и распределительных устройств) | BI23: тыс. руб. | BT23: =63197.41*1.01854 -> 64,369.09 | CD23: 3,692.52 | CN23: в плане базового года ДПР (2019 г.) затраты на ФОТ, материалы были учтены в статье "Работы и услуги производственнного характера". В 2020 г. произошел перевод персонала ЭСЦ ООО "Заводские сети" в штат ООО "НЭСК" | DI23: -60,676.57 | DK23: -94.3
A24: 1.1.1.3.1 | K24: в том числе на ремонт | BI24: тыс. руб. | CD24: 0.00 | DI24: 0.00
A25: 1.1.2 | K25: Фонд оплаты труда | BI25: тыс. руб. | BT25: =4574.86*1.01854 -> 4,659.68 | CD25: 82,981.53 | CN25: в плане базового года ДПР (2019 г.) затраты на ФОТ, материалы были учтены в статье "Работы и услуги производственнного характера". В 2020 г. произошел перевод персонала ЭСЦ ООО "Заводские сети" в штат ООО "НЭСК" | DI25: 78,321.85 | DK25: 1680.8
A26: 1.1.2.1 | K26: в том числе на ремонт | BI26: тыс. руб. | DI26: 0.00
A27: 1.1.3 | K27: Прочие подконтрольные расходы (с расшифровкой) | BI27: тыс. руб. | BT27: =BT28+BT30+BT29 -> 736.75 | CD27: =CD28+CD29+CD30 -> 8,915.62 | CN27: рост затрат по факту 2022 г. связан с заключением договора страхования,уборки,дератизация и проч. | DI27: 8,178.87 | DK27: 1110.1
A28: 1.1.3.1 | K28: в том числе прибыль на социальное развитие (включая социальные выплаты) | BI28: тыс. руб. | CD28: 715.81 | CN28: в плане базового года ДПР (2019 г.) затраты не были учтены РСТ в связи с отсутствием отраслевого тарифного соглашения | DI28: 715.81
A29: 1.1.3.2 | K29: в том числе транспортные услуги | BI29: тыс. руб. | BT29: 0.00 | CD29: 951.71 | DI29: 951.71
A30: 1.1.3.3 | K30: в том числе прочие расходы (с расшифровкой)**** | BI30: тыс. руб. | BT30: =723.34*1.01854 -> 736.75 | CD30: =SUM(CD31:CM38) -> 7,248.10 | CN30: Рост фактических затрат от базы 2019 г. РСТ НО в плане базового года ДПР (2019 г.) учтены затраты на ТО и ППР сетей не в полном объеме от заявленого | DI30: 6,511.35 | DK30: 883.8
J31: командировочные расходы | CD31: 61.60
J32: услуги по охране | CD32: 3,031.61
J33: услуги связи | CD33: 443.00
J34: обучение | CD34: 201.98
J35: страхование | CD35: 48.04
J36: вырубка деревьев | CD36: 529.00
J37: уборка помещений | CD37: 581.00
J38: прочие | CD38: =3461.87-CD37-CD36 -> 2,351.87
A39: 1.1.4 | K39: Расходы на обслуживание операционных заемных средств в составе подконтрольных расходов | BI39: тыс. руб. | BT39: 0.00 | CD39: 0.00 | DI39: 0.00
A40: 1.1.5 | K40: Расходы из прибыли в составе подконтрольных расходов | BI40: тыс. руб. | CD40: 0.00 | DI40: 0.00
A41: 1.2 | K41: Неподконтрольные расходы, включенные в НВВ, всего | BI41: тыс. руб. | BT41: 20,951.23 | CD41: =CD44+CD45+CD46+CD47+CD49+CD50+CD54 -> 90,146.39 | CN41: Отклонения по аренде и соц. отчислениям - см. ниже | DI41: 69,195.16 | DK41: 330.3
A42: 1.2.1 | K42: Оплата услуг ОАО "ФСК ЕЭС" | BI42: тыс. руб. | BT42: 0.00 | CD42: 0.00 | DI42: 0.00
A43: 1.2.2 | K43: Расходы на оплату технологического присоединения к сетям смежной сетевой организации | BI43: тыс. руб. | BT43: 0.00 | CD43: 0.00 | DI43: 0.00
A44: 1.2.3 | K44: Плата за аренду имущества | BI44: тыс. руб. | BT44: =9086.22+1418.15 -> 10,504.37 | CD44: 29,365.54 | CN44: По факту 2022 г. стоимость аренды оплачена арендодателям по рыночной цене, а РСТ учтена по плану 2022 г.- в размере возмещения затрат на амортизацию и налоги | DI44: 18,861.17 | DK44: 179.6
A45: 1.2.4 | K45: отчисления на социальные нужды | BI45: тыс. руб. | BT45: 1,491.42 | CD45: 20,121.36 | CN45: Рассчитывается в % от фактического ФОТ за 2022 г. | DI45: 18,629.94 | DK45: 1249.1
A46: 1.2.5 | K46: расходы на возврат и обслуживание долгосрочных заемных средств, направляемых на финансирование капитальных вложений | BI46: тыс. руб. | BT46: 3,320.00 | CD46: 23,468.68 | CN46: Рост инвест программы по факту 2022 г. (корректировка 2022 г. утверждена МЭ и ЖКХ НО) | DI46: 20,148.68 | DK46: 606.9
A47: 1.2.6 | K47: амортизация | BI47: тыс. руб. | BT47: 3,584.00 | CD47: 14,450.59 | DI47: 10,866.59 | DK47: 303.2
A48: 1.2.7 | K48: налог на величину капитальных вложений | BI48: тыс. руб. | BT48: 830.00 | CD48: 830.00 | DI48: 0.00 | DK48: 0.0
A49: 1.2.8 | K49: налог на прибыль | BI49: тыс. руб. | BT49: 830.00 | CD49: 587.39 | DI49: -242.61 | DK49: -29.2
A50: 1.2.9 | K50: прочие налоги | BI50: тыс. руб. | BT50: 0.00 | CD50: 722.34 | CN50: земельный, налог на имущество, транспортный налоги на вкупленное в 2020-2022 г. имущество | DI50: 722.34
A51: 1.2.10 | K51: Расходы сетевой организации, связанные с осуществлением технологического присоединения к электрическим сетям, не включенные в плату за технологическое присоединение | BI51: тыс. руб. | BT51: 0.00 | CD51: 0.00 | DI51: 0.00
A52: 1.2.10.1 | K52: Справочно: "Количество льготных технологических присоединений" | BI52: ед. | BT52: 0.00 | CD52: 0.00 | DI52: 0.00
A53: 1.2.11 | K53: Средства, подлежащие дополнительному учету по результатам вступивших в законную силу решений суда, решений ФСТ России, принятых по итогам рассмотрения разногласий или досудебного урегулирования споров, решения ФСТ России об отмене решения регулирующего органа, принятого им с превышением полномочий (предписания) | BI53: тыс. руб. | BT53: 0.00 | CD53: 0.00 | DI53: 0.00
A54: 1.2.12 | K54: прочие неподконтрольные расходы (с расшифровкой) | BI54: тыс. руб. | BT54: 471.57 | CD54: 1,430.49 | DI54: 958.92 | DK54: 203.3
A55: 1.3 | K55: недополученный по независящим причинам доход (+)/избыток средств, полученный в предыдущем периоде регулирования (-) | BI55: тыс. руб. | BT55: -18,823.32 | CD55: 0.00 | DI55: 18,823.32 | DK55: -100.0
A56: II | K56: Справочно: расходы на ремонт, всего (пункт 1.1.1.2 + пункт 1.1.2.1 + пункт 1.1.3.1) | BI56: тыс. руб. | BT56: =BT22+BT26+BT28 -> 22,245.53 | CD56: =CD22+CD24+CD26 -> 4,012.48 | CN56: частичный переход с выполнения кап. ремонтов подрядным способом на кап. ремонты хоз. способом (силами ЭСЦ ООО "НЭСК") | DI56: -18,233.05 | DK56: -82.0
A57: III | K57: Необходимая валовая выручка на оплату технологического расхода (потерь) электроэнергии | BI57: тыс. руб. | BT57: 133,285.22 | CD57: 94,843.25 | CN57: Экономия связана с факторами снижения объема потерь и снижения цены покупки потерь от плана 2022 г. | DI57: -38,441.97 | DK57: -28.8
A58: 1.1 | K58: Справочно: Объем технологических потерь | BI58: МВт∙ч | BT58: 35,699.00 | CD58: 26,951.93 | CN58: снижение размера потерь связано с отклонением структуры баланса эл. энергии в разбивке по уровням напряжения по факту 2022 г. от плана. | DI58: -8,747.07 | DK58: -24.5
A59: 1.2 | K59: Справочно: Цена покупки электрической энергии сетевой организацией в целях компенсации технологического расхода электрической энергии | BI59: тыс. руб./МВт*ч | BT59: =BT57/BT58 -> 3.73 | CD59: =CD57/CD58 -> 3.52 | DI59: -0.21 | DK59: -5.7
A60: IV | K60: Натуральные (количественные) показатели, используемые при определении структуры и объемов затрат на оказание услуг по передаче электрической энергии сетевыми организациями | BI60: х | BT60: х | CD60: х
A61: 1 | K61: общее количество точек подключения на конец года | BI61: шт. | BT61: 533.00 | CD61: 539.00 | DI61: 6.00 | DK61: 1.1
A62: 2 | K62: Трансформаторная мощность подстанций, всего | BI62: МВа | BT62: 1,481.62 | CD62: =CD63+CD64 -> 1,467.57 | DI62: -14.05 | DK62: -0.9
A63: 2.1 | K63: в том числе трансформаторная мощность подстанций на уровне напряжения ВН | BI63: МВа | BT63: 560.00 | CD63: 560.00 | DI63: 0.00 | DK63: 0.0
A64: 2.2 | K64: в том числе трансформаторная мощность подстанций на уровне напряжения СН2 | BI64: МВа | BT64: 921.62 | CD64: 907.57 | DI64: -14.05 | DK64: -1.5
A65: 3 | K65: Количество условных единиц по линиям электропередач, всего | BI65: у.е. | BT65: 2,403.62 | CD65: =CD66+CD67+CD68 -> 2,403.64 | DI65: 0.02 | DK65: 0.0
A66: 3.1 | K66: в том числе количество условных единиц по линиям электропередач на уровне напряжения ВН | BI66: у.е. | BT66: 0.16 | CD66: ='[1]Р.2.1'!$BA$54 -> 0.16 | DI66: 0.00 | DK66: 0.0
A67: 3.2 | K67: в том числе количество условных единиц по линиям электропередач на уровне напряжения СН2 | BI67: у.е. | BT67: 2,400.91 | CD67: 2,400.93 | DI67: 0.02 | DK67: 0.0
D68: 3.3. | K68: в том числе количество условных единиц по линиям электропередач на уровне напряжения НН | BI68: у.е. | BV68: 2.55 | CD68: 2.55 | DI68: =#REF!-BT68 -> 
A69: 4 | K69: Количество условных единиц по подстанциям, всего | BI69: у.е. | BT69: 4,546.70 | CD69: =CD70+CD71 -> 4,626.40 | DI69: 79.70 | DK69: 1.8
A70: 4.1 | K70: в том числе Количество условных единиц по подстанциям на уровне напряжения ВН | BI70: у.е. | BT70: 473.60 | CD70: 469.60 | DI70: -4.00 | DK70: -0.8
A71: 4.2 | K71: в том числе Количество условных единиц по подстанциям на уровне напряжения СН2 | BI71: у.е. | BT71: 4,073.10 | CD71: 4,156.80 | DI71: 83.70 | DK71: 2.1
A72: 5 | K72: Длина линий электропередач, всего | BI72: км | BT72: 687.06 | CD72: =CD73+CD74+CD75 -> 686.99 | DI72: -0.07 | DK72: -0.0
A73: 5.1 | K73: в том числе длина линий электропередач на уровне напряжения ВН | BI73: км | BT73: 0.10 | CD73: 0.03 | DI73: -0.07 | DK73: -70.0
A74: 5.2. | K74: в том числе длина линий электропередач на уровне напряжения СН2 | BI74: км | BT74: =BT72-BT73-BW75 -> 685.98 | CD74: 685.98 | DI74: 0.00 | DK74: 0.0
F75: 5.3 | K75: в том числе длина линий электропередач на уровне напряжения НН | BI75: км | BW75: 0.98 | CD75: 0.98 | DI75: =#REF!-BT75 -> 
A76: 6 | K76: Доля кабельных линий электропередач | BI76: % | BT76: =BT74/BT72 -> 99.84% | CD76: =CD74/CD72 -> 99.85% | DI76: 0.00 | DK76: 0.0
A77: 7 | K77: Ввод в эксплуатацию новых объектов электросетевого комплекса на конец года | BI77: тыс. руб. | BT77: 0.00 | CD77: =61660+3812.034 -> 65,472.03 | CN77: Ввод ОС по инвест проекту "Создание ИСУ 2 этап" (корректировка утверждена в Мин.Энерго и ЖКХ НО). | DI77: 65,472.03
A78: 7.1 | K78: в том числе за счет платы за технологическое присоединение | BI78: тыс. руб. | BT78: 0.00 | CD78: 3,812.03 | DI78: 3,812.03
A79: 8 | K79: норматив технологического расхода (потерь) электрической энергии, установленный Минэнерго России ***** | BI79: % | BT79: 5.52 | CD79: 4.17 | CN79: снижение размера потерь связано с отклонением структуры баланса эл. энергии в разбивке по уровням напряжения по факту 2022 г. от плана. | DI79: -1.35 | DK79: -24.5
A83: Генеральный директор ООО "НЭСК" | CQ83: Д.А.Недоростков
G84: Примечание:
A85: _____*_В случае определения плановых значений показателей органами исполнительной власти в области государственного регулирования тарифов при установлении тарифов на услуги по передаче электрической энергии в столбце <план> указываются соответствующие значения. Плановые значения составляющих подконтрольных расходов раскрываются в отношении расходов, учтенных регулирующим органом на первый год долгосрочного периода регулирования.
A86: _____**_Информация о фактических затратах на оказание регулируемых услуг заполняется на основании данных раздельного учета расходов по регулируемым видам деятельности.
A87: _____***_При наличии отклонений фактических значений показателей от плановых значений более чем на 15 процентов в столбце <Примечание> указываются причины их возникновения.
A88: _____****_В соответствии с пунктом 28 Основ ценообразования в области регулируемых цен (тарифов) в электроэнергетике, утвержденных постановлением Правительства Российской Федерации от 29.12.2011 № 1178.
A89: _____*****_В соответствии с пунктом 4.2.14.8 Положения о Министерстве энергетики Российской Федерации, утвержденного постановлением Правительства Российской Федерации от 28.05.2008 № 400.
